[Event "World Women Teams Championship"]
[Site "Sitges, Spain"]
[Date "2021.09.28"]
[Round "4.5"]
[White "Matnadze, Ana"]
[Black "Danielian, Elina"]
[Result "1/2-1/2"]
[TimeControl "40+10"]
[WhiteElo "2349"]
[BlackElo "2358"]

1. d4 {[%clk 00:45:16]} {[%emt 00:00:03]} Nf6 {[%clk 00:45:17]} {[%emt
00:00:03]} 2. Nf3 {[%clk 00:45:24]} {[%emt 00:00:03]} e6 {[%clk 00:45:12]}
{[%emt 00:00:15]} 3. c4 {[%clk 00:45:25]} {[%emt 00:00:09]} Bb4+ {[%clk
00:45:19]} {[%emt 00:00:03]} 4. Bd2 {[%clk 00:45:32]} {[%emt 00:00:04]} Qe7
{[%clk 00:45:20]} {[%emt 00:00:09]} 5. g3 {[%clk 00:45:12]} {[%emt 00:00:29]}
O-O {[%clk 00:44:13]} {[%emt 00:01:16]} 6. Bg2 {[%clk 00:45:18]} {[%emt
00:00:05]} a5 {[%clk 00:42:02]} {[%emt 00:02:21]} 7. O-O {[%clk 00:45:03]}
{[%emt 00:00:24]} Bxd2 {[%clk 00:41:03]} {[%emt 00:01:10]} 8. Nbxd2 {[%clk
00:45:01]} {[%emt 00:00:11]} d6 {[%clk 00:41:04]} {[%emt 00:00:10]} 9. e4
{[%clk 00:44:36]} {[%emt 00:00:35]} e5 {[%clk 00:41:08]} {[%emt 00:00:06]} 10.
Re1 {[%clk 00:44:18]} {[%emt 00:00:28]} Bg4 {[%clk 00:40:54]} {[%emt 00:00:23]}
11. h3 {[%clk 00:43:32]} {[%emt 00:00:57]} Bxf3 {[%clk 00:41:02]} {[%emt
00:00:02]} 12. Nxf3 {[%clk 00:43:37]} {[%emt 00:00:04]} Nbd7 {[%clk 00:38:36]}
{[%emt 00:02:36]} 13. Nh4 {[%clk 00:43:02]} {[%emt 00:00:45]} g6 {[%clk
00:38:40]} {[%emt 00:00:06]} 14. b3 {[%clk 00:41:02]} {[%emt 00:02:11]} c5
{[%clk 00:33:04]} {[%emt 00:05:46]} 15. d5 {[%clk 00:40:03]} {[%emt 00:01:08]}
a4 {[%clk 00:33:12]} {[%emt 00:00:02]} 16. Qd2 {[%clk 00:38:56]} {[%emt
00:01:17]} Rfb8 {[%clk 00:32:28]} {[%emt 00:00:54]} 17. Reb1 {[%clk 00:36:54]}
{[%emt 00:02:13]} Qd8 {[%clk 00:18:18]} {[%emt 00:14:20]} 18. Qg5 {[%clk
00:35:04]} {[%emt 00:02:00]} Kh8 {[%clk 00:17:14]} {[%emt 00:01:13]} 19. Qe3
{[%clk 00:33:27]} {[%emt 00:01:49]} axb3 {[%clk 00:16:00]} {[%emt 00:01:24]} 20.
Rxb3 {[%clk 00:32:32]} {[%emt 00:01:04]} Ra4 {[%clk 00:15:44]} {[%emt
00:00:26]} 21. Bf1 {[%clk 00:31:44]} {[%emt 00:00:59]} b6 {[%clk 00:14:21]}
{[%emt 00:01:33]} 22. a3 {[%emt 00:00:57]} Rba8 23. Nf3 {[%clk 00:30:19]}
{[%emt 00:00:51]} Kg7 {[%clk 00:14:29]} {[%emt 00:00:08]} 24. Ne1 {[%clk
00:29:26]} {[%emt 00:01:03]} Rb4 {[%clk 00:09:21]} {[%emt 00:05:18]} 25. Rbb1
{[%clk 00:27:22]} {[%emt 00:02:15]} Rxb1 {[%clk 00:09:09]} {[%emt 00:00:22]} 26.
Rxb1 {[%clk 00:27:31]} Ra4 {[%clk 00:09:03]} {[%emt 00:00:15]} 27. Nc2 {[%clk
00:27:21]} {[%emt 00:00:20]} h6 {[%clk 00:08:34]} {[%emt 00:00:39]} 28. Bd3
{[%clk 00:25:52]} {[%emt 00:01:39]} Qa8 {[%clk 00:07:41]} {[%emt 00:01:03]} 29.
Rb3 {[%clk 00:24:04]} {[%emt 00:01:58]} Ne8 {[%clk 00:07:19]} {[%emt 00:00:32]}
30. Qc1 {[%clk 00:23:58]} {[%emt 00:00:15]} Nc7 {[%clk 00:07:04]} {[%emt
00:00:26]} 31. Ne3 {[%clk 00:23:56]} {[%emt 00:00:12]} Qd8 {[%clk 00:05:59]}
{[%emt 00:01:15]} 32. Kg2 {[%clk 00:21:27]} {[%emt 00:02:39]} Ne8 {[%clk
00:03:55]} {[%emt 00:02:14]} 33. Nd1 {[%clk 00:19:37]} {[%emt 00:02:00]} Ra5
{[%clk 00:03:14]} {[%emt 00:00:51]} 34. Nc3 {[%clk 00:18:39]} {[%emt 00:01:08]}
Nc7 {[%clk 00:02:09]} {[%emt 00:01:15]} 35. Qb2 {[%clk 00:17:29]} {[%emt
00:01:20]} h5 {[%clk 00:01:45]} {[%emt 00:00:35]} 36. Be2 {[%clk 00:16:53]}
{[%emt 00:00:46]} Ne8 {[%clk 00:01:19]} {[%emt 00:00:35]} 37. h4 {[%clk
00:16:36]} {[%emt 00:00:28]} Nef6 {[%clk 00:01:02]} {[%emt 00:00:27]} 38. Qc1
{[%clk 00:16:26]} {[%emt 00:00:19]} Nh7 {[%clk 00:00:48]} {[%emt 00:00:24]} 39.
Nb5 {[%clk 00:16:21]} {[%emt 00:00:15]} Qe7 {[%clk 00:00:23]} {[%emt 00:00:35]}
40. Bd1 {[%clk 00:15:50]} {[%emt 00:00:41]} Ra6 {[%clk 00:00:13]} {[%emt
00:00:19]} 41. Qb1 {[%clk 00:13:45]} {[%emt 00:02:15]} Ndf6 {[%clk 00:00:16]}
{[%emt 00:00:08]} 42. Nc3 {[%clk 00:13:42]} {[%emt 00:00:12]} Qa7 {[%clk
00:00:22]} {[%emt 00:00:04]} 43. Qc1 {[%clk 00:13:33]} {[%emt 00:00:20]} Qd7
{[%clk 00:00:15]} {[%emt 00:00:16]} 44. Bc2 {[%clk 00:12:01]} {[%emt 00:01:42]}
Qg4 {[%clk 00:00:12]} {[%emt 00:00:14]} 45. Nd1 {[%clk 00:09:59]} {[%emt
00:02:12]} Qd7 {[%clk 00:00:16]} {[%emt 00:00:05]} 46. Nc3 {[%clk 00:08:55]}
{[%emt 00:01:15]} Qg4 {[%clk 00:00:13]} {[%emt 00:00:13]} 47. Rb1 {[%clk
00:08:59]} {[%emt 00:00:05]} Qd7 {[%clk 00:00:13]} {[%emt 00:00:09]} 48. Bd1
{[%clk 00:08:12]} {[%emt 00:00:58]} Ne8 {[%clk 00:00:14]} {[%emt 00:00:10]} 49.
Rb3 {[%clk 00:08:05]} {[%emt 00:00:16]} Qe7 {[%clk 00:00:14]} {[%emt 00:00:10]}
50. Qb1 {[%clk 00:08:00]} {[%emt 00:00:15]} Qa7 {[%clk 00:00:16]} {[%emt
00:00:07]} 51. Qc1 {[%clk 00:06:41]} {[%emt 00:01:31]} Qe7 {[%clk 00:00:18]}
{[%emt 00:00:08]} 52. Rb1 {[%clk 00:06:29]} {[%emt 00:00:22]} Nhf6 {[%clk
00:00:17]} {[%emt 00:00:11]} 53. Bc2 {[%clk 00:05:30]} {[%emt 00:01:08]} Qa7
{[%clk 00:00:16]} {[%emt 00:00:11]} 54. Nb5 {[%clk 00:03:59]} {[%emt 00:01:42]}
Qe7 {[%clk 00:00:16]} {[%emt 00:00:09]} 55. Nc3 {[%clk 00:03:51]} {[%emt
00:00:19]} Qa7 {[%clk 00:00:24]} {[%emt 00:00:02]} 56. Rb3 {[%clk 00:03:59]}
{[%emt 00:00:02]} Qe7 {[%clk 00:00:24]} {[%emt 00:00:10]} 57. Qb2 {[%clk
00:03:25]} {[%emt 00:00:44]} Nd7 {[%clk 00:00:24]} {[%emt 00:00:10]} 58. Qc1
{[%clk 00:03:21]} {[%emt 00:00:14]} Ndf6 {[%clk 00:00:32]} {[%emt 00:00:02]}
1/2-1/2

[Event "World Women Teams Championship"]
[Site "Sitges, Spain"]
[Date "2021.09.28"]
[Round "4.6"]
[White "Mkrtchian, Lilit"]
[Black "Vega Gutierrez, Sabrina"]
[Result "1-0"]
[TimeControl "40+10"]
[WhiteElo "2306"]
[BlackElo "2214"]

1. c4 {[%clk 00:45:15]} {[%emt 00:00:03]} e6 {[%clk 00:45:17]} {[%emt
00:00:04]} 2. g3 {[%clk 00:43:47]} {[%emt 00:01:38]} d5 {[%clk 00:45:17]}
{[%emt 00:00:10]} 3. Bg2 {[%clk 00:43:54]} {[%emt 00:00:03]} Nf6 {[%clk
00:45:07]} {[%emt 00:00:21]} 4. Nf3 {[%clk 00:43:51]} {[%emt 00:00:12]} Be7
{[%clk 00:44:50]} {[%emt 00:00:27]} 5. d4 {[%clk 00:41:36]} {[%emt 00:02:25]}
O-O {[%clk 00:44:36]} {[%emt 00:00:24]} 6. Qc2 {[%clk 00:40:30]} {[%emt
00:01:15]} c6 {[%clk 00:44:19]} {[%emt 00:00:27]} 7. Nbd2 {[%clk 00:40:18]}
{[%emt 00:00:23]} b6 {[%clk 00:44:03]} {[%emt 00:00:26]} 8. O-O {[%clk
00:40:02]} {[%emt 00:00:25]} c5 {[%clk 00:43:23]} {[%emt 00:00:50]} 9. cxd5
{[%clk 00:28:05]} {[%emt 00:12:07]} exd5 {[%clk 00:43:23]} {[%emt 00:00:11]} 10.
e4 {[%clk 00:26:53]} {[%emt 00:01:22]} Nc6 {[%clk 00:40:00]} {[%emt 00:03:32]}
11. dxc5 {[%clk 00:24:03]} {[%emt 00:03:00]} Ba6 {[%clk 00:36:57]} {[%emt
00:03:14]} 12. Rd1 {[%clk 00:20:06]} {[%emt 00:04:06]} Be2 {[%clk 00:28:04]}
{[%emt 00:09:04]} 13. Re1 {[%clk 00:19:18]} {[%emt 00:00:58]} Bxf3 {[%clk
00:27:18]} {[%emt 00:00:55]} 14. Nxf3 {[%clk 00:16:45]} {[%emt 00:02:43]} dxe4
{[%clk 00:24:22]} {[%emt 00:03:06]} 15. Ng5 {[%clk 00:16:39]} {[%emt 00:00:16]}
Nb4 {[%clk 00:23:16]} {[%emt 00:01:16]} 16. Qb3 {[%clk 00:13:47]} {[%emt
00:03:02]} Bxc5 {[%clk 00:22:04]} {[%emt 00:01:21]} 17. Nxe4 {[%clk 00:13:24]}
{[%emt 00:00:33]} Nd3 {[%clk 00:16:22]} {[%emt 00:05:53]} 18. Rd1 {[%clk
00:04:45]} {[%emt 00:08:49]} Nxe4 {[%clk 00:16:07]} {[%emt 00:00:25]} 19. Rxd3
{[%clk 00:02:35]} {[%emt 00:02:20]} Qf6 {[%clk 00:15:47]} {[%emt 00:00:29]} 20.
Rf3 {[%clk 00:01:05]} {[%emt 00:01:40]} Bxf2+ {[%clk 00:14:17]} {[%emt
00:01:41]} 21. Kf1 {[%clk 00:01:14]} {[%emt 00:00:01]} Qg6 {[%clk 00:03:45]}
{[%emt 00:10:41]} 22. Rxf2 {[%clk 00:01:10]} {[%emt 00:00:15]} Nxf2 {[%clk
00:03:53]} {[%emt 00:00:02]} 23. Bxa8 {[%clk 00:00:45]} {[%emt 00:00:35]} Rxa8
{[%clk 00:04:00]} {[%emt 00:00:02]} 24. Kxf2 {[%clk 00:00:50]} {[%emt
00:00:05]} Rc8 {[%clk 00:02:46]} {[%emt 00:01:24]} 25. Be3 {[%clk 00:00:17]}
{[%emt 00:00:44]} Rc2+ {[%clk 00:00:15]} {[%emt 00:02:41]} 26. Kg1 {[%clk
00:00:24]} {[%emt 00:00:02]} Qe4 {[%clk 00:00:13]} {[%emt 00:00:13]} 27. Bf2
{[%clk 00:00:32]} {[%emt 00:00:03]} Qe2 {[%clk 00:00:13]} {[%emt 00:00:10]} 28.
Qe3 {[%clk 00:00:19]} {[%emt 00:00:22]} Qxe3 {[%clk 00:00:12]} {[%emt
00:00:12]} 29. Bxe3 {[%clk 00:00:28]} {[%emt 00:00:01]} Rxb2 {[%clk 00:00:20]}
30. Rd1 {[%clk 00:00:13]} {[%emt 00:00:25]} h5 {[%clk 00:00:17]} {[%emt
00:00:14]} 31. Rd2 {[%clk 00:00:21]} {[%emt 00:00:02]} Rb1+ {[%clk 00:00:22]}
{[%emt 00:00:05]} 32. Kg2 {[%clk 00:00:27]} {[%emt 00:00:05]} f6 {[%clk
00:00:21]} {[%emt 00:00:11]} 33. Kf3 {[%clk 00:00:33]} {[%emt 00:00:04]} Kh7
{[%clk 00:00:29]} {[%emt 00:00:02]} 34. Rd7 {[%clk 00:00:34]} {[%emt 00:00:09]}
Rb2 {[%clk 00:00:23]} {[%emt 00:00:15]} 35. Rxa7 {[%clk 00:00:36]} {[%emt
00:00:08]} Rxh2 {[%clk 00:00:23]} {[%emt 00:00:11]} 36. Bxb6 {[%clk 00:00:37]}
{[%emt 00:00:09]} h4 {[%clk 00:00:30]} {[%emt 00:00:03]} 37. gxh4 {[%clk
00:00:39]} {[%emt 00:00:08]} Rxh4 {[%clk 00:00:38]} {[%emt 00:00:02]} 38. a4
{[%clk 00:00:43]} {[%emt 00:00:07]} Kh6 {[%clk 00:00:30]} {[%emt 00:00:16]} 39.
Ra8 {[%clk 00:00:18]} {[%emt 00:00:36]} Rb4 {[%clk 00:00:29]} {[%emt 00:00:11]}
40. a5 {[%clk 00:00:24]} {[%emt 00:00:04]} 1-0

[Event "World Women Teams Championship"]
[Site "Sitges, Spain"]
[Date "2021.09.28"]
[Round "4.7"]
[White "Eizaguerri Floris, Maria"]
[Black "Sargsyan, Anna M."]
[Result "0-1"]
[TimeControl "40+10"]
[WhiteElo "1811"]
[BlackElo "2283"]

1. e4 {[%clk 00:45:18]} {[%emt 00:00:02]} e5 {[%clk 00:45:18]} {[%emt
00:00:03]} 2. Nf3 {[%clk 00:45:27]} {[%emt 00:00:01]} Nc6 {[%clk 00:45:25]}
{[%emt 00:00:03]} 3. Bb5 {[%clk 00:45:35]} a6 {[%clk 00:45:33]} {[%emt
00:00:02]} 4. Ba4 {[%clk 00:45:44]} {[%emt 00:00:01]} Nf6 {[%clk 00:45:41]}
{[%emt 00:00:02]} 5. O-O {[%clk 00:45:52]} {[%emt 00:00:02]} Nxe4 {[%clk
00:45:48]} {[%emt 00:00:03]} 6. d4 {[%clk 00:45:59]} {[%emt 00:00:04]} b5
{[%clk 00:45:56]} {[%emt 00:00:02]} 7. Bb3 {[%clk 00:46:08]} d5 {[%clk
00:46:04]} {[%emt 00:00:02]} 8. dxe5 {[%clk 00:46:13]} {[%emt 00:00:04]} Be6
{[%clk 00:45:58]} {[%emt 00:00:16]} 9. Nbd2 {[%clk 00:46:14]} {[%emt 00:00:10]}
Be7 {[%clk 00:45:43]} {[%emt 00:00:24]} 10. c3 {[%clk 00:46:01]} {[%emt
00:00:24]} O-O {[%clk 00:44:53]} {[%emt 00:00:59]} 11. Bc2 {[%clk 00:46:04]}
{[%emt 00:00:07]} f5 {[%clk 00:45:01]} {[%emt 00:00:03]} 12. exf6 {[%clk
00:46:07]} {[%emt 00:00:07]} Nxf6 {[%clk 00:44:35]} {[%emt 00:00:35]} 13. a4
{[%clk 00:45:46]} {[%emt 00:00:32]} b4 {[%clk 00:44:42]} {[%emt 00:00:03]} 14.
Re1 {[%clk 00:45:44]} {[%emt 00:00:12]} Bg4 {[%clk 00:44:49]} {[%emt 00:00:01]}
15. h3 {[%clk 00:45:41]} {[%emt 00:00:14]} Bh5 {[%clk 00:44:51]} {[%emt
00:00:06]} 16. Nf1 {[%clk 00:45:10]} {[%emt 00:00:44]} Bc5 {[%clk 00:42:25]}
{[%emt 00:02:36]} 17. Be3 {[%clk 00:37:09]} {[%emt 00:08:11]} Bxe3 {[%clk
00:41:17]} {[%emt 00:01:18]} 18. Rxe3 {[%clk 00:35:15]} {[%emt 00:02:04]} d4
{[%clk 00:41:21]} {[%emt 00:00:06]} 19. cxd4 {[%clk 00:29:01]} {[%emt
00:06:24]} Bxf3 {[%clk 00:41:26]} {[%emt 00:00:04]} 20. Rxf3 {[%clk 00:27:31]}
{[%emt 00:01:40]} Nxd4 {[%clk 00:41:33]} {[%emt 00:00:04]} 21. Rd3 {[%clk
00:27:09]} {[%emt 00:00:31]} c5 {[%clk 00:41:40]} {[%emt 00:00:03]} 22. Bb3+
{[%clk 00:24:04]} {[%emt 00:03:15]} Kh8 {[%clk 00:41:48]} {[%emt 00:00:02]} 23.
Rc1 {[%clk 00:23:45]} {[%emt 00:00:30]} Qb6 {[%clk 00:40:56]} {[%emt 00:01:01]}
24. Nd2 {[%clk 00:20:56]} {[%emt 00:02:59]} Rae8 {[%clk 00:40:30]} {[%emt
00:00:35]} 25. Nc4 {[%clk 00:18:51]} {[%emt 00:02:16]} Qb8 {[%clk 00:40:38]}
{[%emt 00:00:02]} 26. Ne3 {[%clk 00:15:51]} {[%emt 00:03:11]} Ne4 {[%clk
00:40:25]} {[%emt 00:00:23]} 27. Ng4 {[%clk 00:08:51]} {[%emt 00:07:10]} Nxf2
{[%clk 00:40:25]} {[%emt 00:00:09]} 28. Nxf2 {[%clk 00:08:32]} {[%emt
00:00:28]} Ne2+ {[%clk 00:40:33]} {[%emt 00:00:02]} 29. Kh1 {[%clk 00:04:01]}
{[%emt 00:04:41]} Nxc1 {[%clk 00:40:19]} {[%emt 00:00:24]} 30. Qxc1 {[%clk
00:04:04]} {[%emt 00:00:08]} Rxf2 {[%clk 00:40:26]} {[%emt 00:00:02]} 31. Rd1
{[%clk 00:03:51]} {[%emt 00:00:24]} Qg3 {[%clk 00:40:14]} {[%emt 00:00:21]} 32.
Bd5 {[%clk 00:03:53]} {[%emt 00:00:09]} Rfe2 {[%clk 00:40:19]} {[%emt
00:00:05]} 33. Rg1 {[%clk 00:01:33]} {[%emt 00:02:29]} Re1 {[%clk 00:40:25]}
{[%emt 00:00:04]} 0-1

[Event "World Women Teams Championship"]
[Site "Sitges, Spain"]
[Date "2021.09.28"]
[Round "4.8"]
[White "Gaboyan, Susanna"]
[Black "Calzetta Ruiz, Monica"]
[Result "1-0"]
[TimeControl "40+10"]
[WhiteElo "2083"]
[BlackElo "2103"]

1. Nf3 {[%clk 00:45:16]} {[%emt 00:00:03]} c5 {[%clk 00:45:18]} {[%emt
00:00:02]} 2. g3 {[%clk 00:45:24]} {[%emt 00:00:03]} g6 {[%clk 00:45:23]}
{[%emt 00:00:05]} 3. Bg2 {[%clk 00:45:29]} {[%emt 00:00:05]} Bg7 {[%clk
00:45:31]} {[%emt 00:00:02]} 4. d4 {[%clk 00:45:33]} {[%emt 00:00:06]} cxd4
{[%clk 00:45:38]} {[%emt 00:00:03]} 5. Nxd4 {[%clk 00:45:40]} {[%emt 00:00:04]}
Nc6 {[%clk 00:45:44]} {[%emt 00:00:03]} 6. Nb3 {[%clk 00:45:45]} {[%emt
00:00:06]} d6 {[%clk 00:45:48]} {[%emt 00:00:05]} 7. O-O {[%clk 00:45:49]}
{[%emt 00:00:06]} h5 {[%clk 00:45:51]} {[%emt 00:00:06]} 8. h3 {[%clk
00:44:50]} {[%emt 00:01:10]} Be6 {[%clk 00:45:57]} {[%emt 00:00:04]} 9. Nc3
{[%clk 00:44:29]} {[%emt 00:00:32]} Qd7 {[%clk 00:45:44]} {[%emt 00:00:22]} 10.
h4 {[%clk 00:35:35]} {[%emt 00:09:04]} Bh3 {[%clk 00:43:40]} {[%emt 00:02:14]}
11. Nd5 {[%clk 00:30:41]} {[%emt 00:05:05]} Bxg2 {[%clk 00:42:39]} {[%emt
00:01:09]} 12. Kxg2 {[%clk 00:30:50]} {[%emt 00:00:02]} Rc8 {[%clk 00:36:49]}
{[%emt 00:06:00]} 13. c3 {[%clk 00:30:04]} {[%emt 00:00:57]} Nf6 {[%clk
00:36:55]} {[%emt 00:00:03]} 14. Bg5 {[%clk 00:29:45]} {[%emt 00:00:29]} Nxd5
{[%clk 00:35:47]} {[%emt 00:01:18]} 15. Qxd5 {[%clk 00:29:51]} {[%emt
00:00:04]} O-O {[%clk 00:35:42]} {[%emt 00:00:14]} 16. Rad1 {[%clk 00:26:49]}
{[%emt 00:03:14]} Ne5 {[%clk 00:32:25]} {[%emt 00:03:27]} 17. Rd4 {[%clk
00:26:46]} {[%emt 00:00:12]} Rfe8 {[%clk 00:31:50]} {[%emt 00:00:45]} 18. Rfd1
{[%clk 00:25:48]} {[%emt 00:01:09]} b6 {[%clk 00:29:06]} {[%emt 00:02:53]} 19.
a4 {[%clk 00:22:17]} {[%emt 00:03:41]} e6 {[%emt 00:12:36]} 20. Qe4 {[%clk
00:19:04]} {[%emt 00:01:03]} d5 {[%clk 00:18:32]} {[%emt 00:00:38]} 21. Qf4
{[%clk 00:19:10]} {[%emt 00:00:04]} Ng4 {[%clk 00:15:11]} {[%emt 00:03:31]} 22.
R4d2 {[%clk 00:18:44]} {[%emt 00:00:37]} Qc6 {[%emt 00:03:40]} 23. f3 {[%clk
00:14:13]} {[%emt 00:02:29]} Ne5 {[%emt 00:06:38]} 24. Nd4 {[%emt 00:03:54]}
Qxa4 {[%clk 00:06:37]} {[%emt 00:03:20]} 25. Nxe6 {[%clk 00:08:09]} {[%emt
00:00:07]} Qxf4 {[%clk 00:06:45]} {[%emt 00:00:02]} 26. Nxf4 {[%clk 00:08:17]}
{[%emt 00:00:02]} f6 {[%clk 00:06:53]} {[%emt 00:00:02]} 27. Bxf6 {[%clk
00:07:40]} {[%emt 00:00:47]} Bxf6 {[%clk 00:07:01]} {[%emt 00:00:03]} 28. Nxd5
{[%clk 00:07:48]} {[%emt 00:00:01]} Bg7 {[%clk 00:06:53]} {[%emt 00:00:17]} 29.
e4 {[%emt 00:00:31]} Nc4 {[%clk 00:06:25]} {[%emt 00:00:20]} 30. Re2 {[%clk
00:07:46]} {[%emt 00:00:11]} b5 {[%clk 00:05:43]} {[%emt 00:00:51]} 31. Ra1
{[%clk 00:07:38]} {[%emt 00:00:18]} Rc5 {[%clk 00:04:18]} {[%emt 00:01:35]} 32.
Nf4 {[%clk 00:05:26]} {[%emt 00:02:22]} a5 {[%clk 00:02:52]} {[%emt 00:01:36]}
33. Nxg6 {[%clk 00:03:26]} {[%emt 00:02:10]} a4 {[%clk 00:03:01]} {[%emt
00:00:02]} 34. Nf4 {[%emt 00:00:22]} Kf7 {[%clk 00:01:01]} {[%emt 00:01:59]} 35.
Rd1 {[%clk 00:03:25]} {[%emt 00:00:09]} Re7 {[%clk 00:01:01]} {[%emt 00:00:10]}
36. Rd8 {[%clk 00:02:57]} {[%emt 00:00:38]} a3 {[%clk 00:00:54]} {[%emt
00:00:17]} 37. bxa3 {[%clk 00:02:57]} {[%emt 00:00:11]} Bxc3 {[%clk 00:01:02]}
{[%emt 00:00:02]} 38. Nd5 {[%emt 00:00:24]} Ra7 {[%clk 00:01:03]} {[%emt
00:00:08]} 39. Nxc3 {[%clk 00:02:49]} {[%emt 00:00:05]} Rxa3 {[%clk 00:01:00]}
{[%emt 00:00:13]} 40. Nd5 {[%clk 00:02:46]} {[%emt 00:00:12]} Ne5 {[%clk
00:00:57]} {[%emt 00:00:13]} 41. f4 {[%clk 00:02:32]} {[%emt 00:00:25]} Ng4
{[%clk 00:00:58]} {[%emt 00:00:08]} 42. e5 {[%clk 00:02:21]} {[%emt 00:00:21]}
Ke6 {[%clk 00:00:32]} {[%emt 00:00:37]} 43. Rd6+ {[%clk 00:02:20]} {[%emt
00:00:10]} Kf7 {[%clk 00:00:33]} {[%emt 00:00:09]} 44. e6+ {[%clk 00:02:22]}
{[%emt 00:00:08]} Ke8 {[%clk 00:00:40]} {[%emt 00:00:03]} 45. e7 {[%clk
00:02:25]} {[%emt 00:00:07]} Rxd5 {[%clk 00:00:23]} {[%emt 00:00:28]} 46. Rxd5
{[%clk 00:02:24]} {[%emt 00:00:10]} Ne3+ {[%clk 00:00:30]} {[%emt 00:00:02]} 47.
Rxe3 {[%clk 00:02:32]} {[%emt 00:00:03]} Rxe3 {[%clk 00:00:38]} {[%emt
00:00:03]} 48. Rxb5 {[%clk 00:02:40]} {[%emt 00:00:02]} Kxe7 {[%clk 00:00:31]}
{[%emt 00:00:16]} 49. Rxh5 {[%clk 00:02:33]} {[%emt 00:00:17]} Kf6 {[%clk
00:00:33]} {[%emt 00:00:09]} 50. Kh3 {[%clk 00:02:37]} {[%emt 00:00:05]} Ra3
{[%clk 00:00:41]} {[%emt 00:00:03]} 51. Kg4 {[%clk 00:02:43]} {[%emt 00:00:04]}
Rb3 {[%clk 00:00:47]} {[%emt 00:00:04]} 52. Rh6+ {[%clk 00:02:49]} {[%emt
00:00:05]} Kg7 {[%clk 00:00:56]} 53. Ra6 {[%clk 00:02:57]} {[%emt 00:00:03]}
Rc3 {[%clk 00:01:02]} {[%emt 00:00:04]} 54. h5 {[%clk 00:03:01]} {[%emt
00:00:05]} Kh7 {[%clk 00:00:52]} {[%emt 00:00:20]} 55. Kh4 {[%clk 00:03:08]}
{[%emt 00:00:04]} 1-0